Cogmind - Beta 14 @@@ ROGUE MODE // 2024.08.12 @ 16:00:49 Player: cd-rom Result: Destroyed by G-34 Mercenary with Small Laser Performance ------------- Evolutions (0) 0 Regions Visited (1) 200 Robots Destroyed (9) 45 Value Destroyed (304) 304 Prototype IDs (2) 40 Alien Tech Used (0) 0 Bonus (0) 0 TOTAL SCORE: 589 Bonus ------- None Cogmind --------- Core Integrity 0/250 Matter 279/300 Energy 249/250 System Corruption 0% Temperature Cool (6) Movement Walking (190) Ox1 Location -10/Materials Parts ------- > --- POWER (1) -------- Ion Engine > --- PROPULSION (2) --- Aluminum Leg > --- UTILITY (2) ------ Small Storage Unit Terrain Scanner > --- WEAPON (2) ------- Light Assault Rifle > --- INVENTORY (8) ---- Light Treads Light Treads Compact Wheel Compact Wheel ECM Suite Light Armor Plating Peak State ------------ > --- POWER ------------ Ion Engine > --- PROPULSION ------- Aluminum Leg Aluminum Leg > --- UTILITY ---------- Small Storage Unit Terrain Scanner > --- WEAPON ----------- Particle Gun Mining Claw > --- INVENTORY -------- Ion Engine Light Treads Light Treads Aluminum Leg Compact Wheel Compact Wheel ECM Suite Light Assault Rifle [Rating: 8] Favorites ----------- Power Ion Engine Engine Ion Engine Propulsion Aluminum Leg Treads Light Treads Leg Aluminum Leg Utility Small Storage Unit Device Terrain Scanner Storage Small Storage Unit Weapon Light Assault Rifle Energy Gun Particle Gun Ballistic Gun Light Assault Rifle Slashing Weapon Mining Claw Build | -11 -10 ------- Run | Yrd Mat Slots Evolved . | . . Power . | . . Propulsion . | . . Utility . | . . Weapon . | . . Parts Attached 25 | 8 17 Power 5 | 1 4 Engine 5 | 1 4 Core . | . . Reactor . | . . Propulsion 8 | 3 5 Treads 1 | 1 . Leg 7 | 2 5 Wheel . | . . Hover . | . . Flight . | . . Utility 4 | 2 2 Device 3 | 1 2 Storage 1 | 1 . Processor . | . . Hackware . | . . Protection . | . . Artifact . | . . Weapon 8 | 2 6 Energy Gun 2 | . 2 Energy Cannon . | . . Ballistic Gun 5 | 2 3 Ballistic Cannon . | . . Launcher . | . . Special Weapon . | . . Impact Weapon . | . . Slashing Weapon 1 | . 1 Piercing Weapon . | . . Special Melee Weapon . | . . Unidentified Prototypes . | . . Parts Lost 10 | . 10 Power 2 | . 2 Propulsion 4 | . 4 Utility 1 | . 1 Weapon 3 | . 3 Highest Loss Streak 4 | . 4 To Critical Strikes . | . . Average Slot Usage (%) 90 | . 90 Engine 13 | . 13 Leg 26 | . 26 Device 9 | . 9 Storage 14 | . 14 Energy Gun 5 | . 5 Ballistic Gun 14 | . 14 Slashing Weapon 7 | . 7 Peak Build Rating 8 | 7 8 Average Rating 6 | 4 6 On Entrance 3 | . 7 Naked Turns . | . . Heaviest Build 16 | 11 16 Greatest Support 20 | 20 20 Greatest Overweight (x) 1 | . 1 Average Overweight (x) . | . . Largest Inventory Capacity 8 | 8 8 Average Capacity 7 | 7 8 Most Carried 8 | 8 8 Average Carried 7 | 6 7 Final Capacity 8 | 8 8 Final Carried 8 | 8 6 Class Distribution -------------------- 87% | Mutant 12% | Scavenger-Mutant Dominant Class ---------------- Mutant | -10/Materials Resources | -11 -10 ----------- Run | Yrd Mat Matter Collected 428 | 290 138 Remotely 104 | 104 . Salvage Created 415 | 93 322 Parts 18 | 3 15 Haulers Intercepted . | . . Recyclers Shooed . | . . Parts Field Recycled . | . . Retrieved Matter . | . . Parts Self-Destructed . | . . Prevented . | . . Kills | -11 -10 ------- Run | Yrd Mat Combat Hostiles Destroyed 8 | . 8 Melee 7 | . 7 Guns 1 | . 1 Classes Destroyed 2 | 1 1 Recycler 1 | 1 . Grunt 8 | . 8 Best Kill Streak 2 | 1 2 Combat Bots Only 2 | . 2 Max Kills in Single Turn 1 | 1 1 Gunslinging . | . . Exploded . | . . Melee 1 | . 1 Uniques/NPCs Destroyed . | . . Combat | -11 -10 -------- Run | Yrd Mat Hostile Shots Fired 143 | . 143 Missed 38 | . 38 Damage Taken 1210 | . 1210 Core 257 | . 257 Absorbed by Shields . | . . Core Remaining (%) 100 | 100 . Volleys Fired 36 | 5 31 Largest 2 | 2 2 Hottest 65 | 40 65 Shots Fired 53 | 10 43 Gun 53 | 10 43 Cannon . | . . Launcher . | . . Special . | . . Kinetic 44 | 10 34 Thermal 9 | . 9 Explosive . | . . Electromagnetic . | . . Robot Hit Streak 8 | 5 8 Robot Miss Streak 3 | 1 3 Penetration Max . | . . Secondary Targets . | . . Shots Hit Robots 56 | 7 49 Core Hits 16 | 3 13 Critical Kills . | . . Critical Parts Destroyed . | . . Critical Strikes 1 | . 1 Burn 1 | . 1 Melee Attacks 27 | . 27 Impact . | . . Slashing 27 | . 27 Piercing . | . . Sneak Attacks . | . . Combat Hostiles . | . . Follow-up Attacks . | . . Damage Inflicted 852 | 55 797 Guns 329 | 55 274 Cannons . | . . Explosions . | . . Melee 523 | . 523 Ramming . | . . Kinetic 257 | 55 202 Thermal 72 | . 72 Explosive . | . . Electromagnetic . | . . Impact . | . . Slashing 523 | . 523 Piercing . | . . Highest Corruption . | . . Average Corruption . | . . Corruption Purged . | . . Corruption Blocked . | . . Overload Shots . | . . Overflow Damage . | . . Projectiles . | . . Explosions . | . . Melee . | . . Knockbacks . | . . Impact . | . . Kinetic . | . . Secondary . | . . Self-Inflicted Damage . | . . Shots . | . . Rammed . | . . Targets Rammed . | . . Kicked . | . . Crushed . | . . Highest Temperature 192 | . 192 Average Temperature 43 | . 43 Received Heat Transfer 663 | . 663 Siege Activations . | . . Robots Corrupted . | . . Combat Hostiles . | . . Parts Fried . | . . Impact Corruptions . | . . Robots Melted . | . . Combat Hostiles . | . . Parts Melted . | . . Heat Transferred 259 | . 259 Parts Sabotaged . | . . Parts Stolen . | . . Parts Stripped . | . . Power Chain Reactions . | . . Alert | -11 -10 ------- Run | Yrd Mat Peak Influence 110 | 5 110 Initial 3 | . 3 Average 26 | 2 32 Maximum Alert Level . | . . Low Security (%) 100 | 100 100 Level 1 . | . . Level 2 . | . . Level 3 . | . . Level 4 . | . . Level 5 . | . . High Security . | . . Max Security . | . . Squads Dispatched 2 | . 2 Investigation 2 | . 2 Extermination . | . . Reinforcement . | . . Assault . | . . Garrison . | . . Intercept . | . . Searches Triggered . | . . Construction Impeded . | . . Haulers Reinforced . | . . Active Scanning Responses . | . . Cargo Convoy Interrupts . | . . Stealth | -11 -10 --------- Run | Yrd Mat Distress Signals 1 | . 1 Communications Jammed . | . . Distress Signals . | . . Times Spotted 14 | . 14 Peak Tracking Total 4 | . 4 Tactical Retreats 1 | . 1 Traps | -11 -10 ------- Run | Yrd Mat Traps Triggered 3 | . 3 Indirectly . | . . Trap Hack Attempts . | . . Triggered . | . . Disarmed . | . . Reprogrammed . | . . Reused . | . . Traps Extracted . | . . Installed . | . . Triggered . | . . Machines | -11 -10 ---------- Run | Yrd Mat Machines Disabled . | . . Max in Single Turn . | . . Machines Repaired . | . . Machines Dismantled . | . . Machines Sabotaged . | . . Overloaded Fab Kills . | . . Hacking | -11 -10 --------- Run | Yrd Mat Machines Accessed 3 | . 3 Terminals 3 | . 3 Fabricators . | . . Repair Stations . | . . Recycling Units . | . . Scanalyzers . | . . Garrison Access . | . . Total Hacks 11 | . 11 Successful 7 | . 7 Failed 4 | . 4 Catastrophic . | . . Database Lockouts . | . . Manual . | . . Terminals 11 | . 11 Fabricators . | . . Repair Stations . | . . Recycling Units . | . . Scanalyzers . | . . Garrison Access . | . . Terminal Hacks 7 | . 7 Record 2 | . 2 Prototype ID Bank 1 | . 1 Dispatch Records 1 | . 1 Recall Investigation 1 | . 1 Recall Reinforcements 1 | . 1 Zone Layout 1 | . 1 Fabricator Hacks . | . . Repair Station Hacks . | . . Recycling Unit Hacks . | . . Scanalyzer . | . . Garrison Access Hacks . | . . Unauthorized Hacks . | . . Terminals . | . . Fabricators . | . . Repair Stations . | . . Recycling Units . | . . Scanalyzers . | . . Garrison Access . | . . Data Cores Recovered . | . . Used . | . . Hacking Detections 3 | . 3 Full Trace Events . | . . Feedback Events . | . . Feedback Blocked . | . . Robot Schematics Acquired . | . . Robots Built . | . . Authchips . | . . Time . | . . Total Robot Build Rating . | . . Part Schematics Acquired . | . . Parts Built . | . . Authchips . | . . Time . | . . Total Part Build Rating . | . . Parts Repaired . | . . Time . | . . Parts Recycled . | . . Recycled Matter . | . . Retrieved Matter . | . . Retrieved Components . | . . Parts Scanalyzed . | . . Part Schematics Acquired . | . . Parts Damaged . | . . Bothacking | -11 -10 ------------ Run | Yrd Mat Used RIF Installer . | . . Robots Hacked . | . . Non-combat . | . . Combat . | . . Robot Hacks Applied . | . . Relay Couplers Released . | . . Fabnet Peak Effective % . | . . Robots Rewired . | . . Allies Hacked . | . . Hacks Repelled . | . . Allies | -11 -10 -------- Run | Yrd Mat Total Allies . | . . Largest Group . | . . Highest-Rated Group . | . . Highest-Rated Ally . | . . Total Orders . | . . Ally Attacks . | . . Total Damage . | . . Kills . | . . Allies Corrupted . | . . Allies Melted . | . . Intel | -11 -10 ------- Run | Yrd Mat Robot Analysis Total . | . . Derelict Logs Recovered . | . . Drone Launches . | . . Drone Recoveries . | . . Exploration | -11 -10 ------------- Run | Yrd Mat Turns Passed 704 | 141 563 Spaces Moved 385 | 95 290 Core 15 | 15 . Treads 4 | 4 . Legs 366 | 76 290 Wheels . | . . Hover . | . . Flight . | . . Fastest Speed 50 | 50 120 Average Speed 119 | 110 122 Slowest Speed 190 | 160 190 Overloaded Moves . | . . Propulsion Burnouts . | . . Robots Hopped . | . . Cave-ins Triggered . | . . Exploration Rate (%) 22 | 6 38 Regions Visited 1 Branch Regions . Pre-discovered Areas . | . . Known Exits Taken . | . . Unknown Exits Taken 1 | 1 . Scrap Searched . | . . Spaces Dug . | . . Terrain Destroyed . | . . Melee . | . . Projectile . | . . AOE . | . . Terrain Rammed . | . . Walls Destroyed . | . . Machines Disabled . | . . Actions | -11 -10 --------- Run | Yrd Mat Total 528 | 121 407 Wait 29 | 2 27 Move 384 | 94 290 Hop . | . . Pick Up 20 | 12 8 Fast Attach 9 | 3 6 Attach 10 | 4 6 Detach . | . . Swap 6 | 1 5 Drop 7 | . 7 Fire 36 | 5 31 Melee 27 | . 27 Ram . | . . Kick . | . . Crush . | . . Escape Stasis . | . . Rewire . | . . Trap . | . . Miscellaneous . | . . Route ------- -11/Scrapyard -10/Materials (discovered 1 exit: [*Mat]) History --------- Turn | Location | Event 10 | -11/Scrapyard | Discovered new exit (range 14) 142 | -11/Scrapyard | Entered Materials 309 | -10/Materials | Discovered new exit (range 10) 317 | -10/Materials | Build established: Mutant 373 | -10/Materials | Lost 3 parts (1p1u1w) 492 | -10/Materials | Core integrity fell below 50% 683 | -10/Materials | Core integrity fell below 20% 705 | -10/Materials | Destroyed by G-34 Mercenary with Small Laser Last Messages --------------- 00614_ G-34 Mercenary suffers critical hit (Burn). 00639_ Ion Engine destroyed. 00641_ G-34 Mercenary destroyed. 00648_ Acquired 20 matter. 00654_ Acquired Aluminum Leg. 00656_ W-16 Scout sends out distress signal. 00671_ K-01 Serf collects debris. 00676_ G-47 Trooper destroyed. 00676_ K-01 Serf collects debris. 00680_ Particle Gun destroyed. 00686_ K-01 Serf collects debris. 00686_ G-34 Mercenary destroyed. 00688_ Aluminum Leg destroyed. 00689_ K-01 Serf collects debris. 00690_ Mining Claw destroyed. 00693_ K-01 Serf collects debris. 00693_ Acquired Aluminum Leg. 00696_ K-01 Serf collects debris. 00701_ Aluminum Leg destroyed. 00704_ K-01 Serf collects debris. Map ----- +----------------------------------------------------+ | ?????????????????????????????????????????????????? | | ?????????????????????????????????????????????????? | | ?????????????????????????????????????????????????? | | ?????????????????????????????????????????????????? | | ?????????????????????????????????????????????????? | | ?????????????????????????????????????????????????? | | ?????????????????????????????????????????????????? | | ?????????????????????????????????????????????????? | | ?????????????????????????????????????????????????? | | ?????????????????????????????????????????????????? | | ????????????????????????????????????????# ???????? | | ????????????????????????????????????????? ?????? | | ??????????????????????????? ???????????? ????? | | ??????????????????????#???? #?????????????? ??? | | ?????????????????????#####? ##??????#########+## | | ????????????????????? ? ????? | | ?????????????#? ????? # ????? | | ????????????????????? # ?????? | | ??????????????????? ?? # #?#???#??########### | | ?????????????????????? ?# #??#?????????????# | | ???????????????? ????? ?/ #????????????????# | | ?????????????????????? ?# #????#???????????# | | ????????????????#??#??#/#?# #??##????????????# | | ??????????????????????#!### #? #????#???????# | | ??????????????? ## ####%### ## ###???????????# | | ???????????? # @%[k #???????????# | | ???????????? + g #???????????# | | ????????????????# g #???#???????### | | ??????????? ????############/### #?????????????? | | ???????????????????# = %T # #?#######+##### | | ??????????????? ???# """ # #?# | | ????????????????#??# """ # #?# | | ????????????????#??# """ # ### | | ?????????????#?????# """ # #?# ######### | | ???????????????????# """ # #?# #?#?#???? | | ???????????????????# # #?# #?????#?? | | ???????????????????######/###### ### ######### | | ???????????????#???#???# | | ????????????????#??????# % * | | ???????????????????????# |%! | | ???????????????????#???####+####################+# | | ???????????????????????# #?????????????? ??? | | ???????????????????????#"" """ #?????#???????????? | | ???????????????????????#"T """ #?????????#???????? | | ???????????????????????#"" """ #?????????????????? | | ???????????????????????# #?????????????????? | | ???????????????????????#########?????????????????? | | | | | | | +----------------------------------------------------+ Best States ------------- Heat Dissipation 25 Energy Generation 10 Energy Capacity 250 Matter Stores 300 Matter Capacity 300 Sight Range 16 Robot Scan Range 14 Terrain Scan Range 14 Terrain Scan Density 10 Evasion (%) 55 Recoil Reduction 1 Item Schematics ----------------- None Robot Schematics ------------------ None Fabricated ------------ Nothing Alien Tech Used ----------------- None Achievements -------------- None Challenges ------------ None Game ------ Seed SpectralQuantumDeflector Manual? 0 Play Time 00:15:33 Cumulative 17.0 hours Start 2024.08.12 @ 15:40:43 End 2024.08.12 @ 16:00:49 Sessions 1 Manual Loads 0 Difficulty Rogue Special Mode None Game No. 6 Rogue 1 Adventurer 5 Explorer 0 Win Type - Total 0 Types 0/0/0/0/0/0/0/0/0 Lore% 2 Gallery% 10 Achievement% 12 Wizard Run 0 Options --------- Layout 1 ASCII 0 Keyboard 0 Movement Mouse Keybinds 0 Fullscreen 1 Font 16/SmallcapsGlow Map View 55x38 Zoom Use 0% Tactical HUD 1 Map Filters NONE Filters NONE Steam X RUN: 5a06e3b6-f321-456a-8506-e08e78efa1a1